[Event "Titled Tuesday Blitz February 28 Early 2023"]
[White "Acor, Corey"]
[Black "Jimenez Almeida, Luis David"]
[WhiteFideId "2024861"]
[BlackFideId "22242244"]
[WhiteElo "2341"]
[BlackElo "2245"]
[Result "0-1"]
[Round "03"]
[TimeControl "180+2"]
[Date "2023.02.28"]
[WhiteClock "0:00:04"]
[BlackClock "0:00:11"]

1. e4 {[%clk 0:03:00]}  c6 {[%clk 0:02:39]} 2. d3 {[%clk 0:02:58]}  g6 {[%clk 0:02:38]} 3. Nc3 {[%clk 0:02:57]}  Bg7 {[%clk 0:02:39]} 4. g3 {[%clk 0:02:58]}  d6 {[%clk 0:02:40]} 5. Bg2 {[%clk 0:02:58]}  Na6 {[%clk 0:02:39]} 6. Be3 {[%clk 0:02:53]}  Nc7 {[%clk 0:02:39]} 7. Qd2 {[%clk 0:02:50]}  b5 {[%clk 0:02:39]} 8. a3 {[%clk 0:02:49]}  a5 {[%clk 0:02:39]} 9. Nf3 {[%clk 0:02:32]}  Nf6 {[%clk 0:02:27]} 10. h3 {[%clk 0:02:31]}  O-O {[%clk 0:02:27]} 11. O-O {[%clk 0:02:28]}  e5 {[%clk 0:02:26]} 12. Bh6 {[%clk 0:02:22]}  Ne6 {[%clk 0:02:24]} 13. Bxg7 {[%clk 0:02:18]}  Kxg7 {[%clk 0:02:25]} 14. d4 {[%clk 0:02:09]}  Qc7 {[%clk 0:02:12]} 15. Rfe1 {[%clk 0:02:00]}  Ba6 {[%clk 0:02:03]} 16. b4 {[%clk 0:01:55]}  Bb7 {[%clk 0:01:59]} 17. d5 {[%clk 0:01:49]}  Nd8 {[%clk 0:01:36]} 18. Rad1 {[%clk 0:01:44]}  axb4 {[%clk 0:01:30]} 19. axb4 {[%clk 0:01:44]}  c5 {[%clk 0:01:20]} 20. Nxb5 {[%clk 0:01:32]}  Qb6 {[%clk 0:01:20]} 21. c4 {[%clk 0:01:31]}  cxb4 {[%clk 0:01:20]} 22. Qxb4 {[%clk 0:01:31]}  Ne8 {[%clk 0:01:16]} 23. Rb1 {[%clk 0:01:26]}  Ra2 {[%clk 0:01:14]} 24. Rb2 {[%clk 0:01:21]}  Rxb2 {[%clk 0:01:14]} 25. Qxb2 {[%clk 0:01:21]}  Ba6 {[%clk 0:01:15]} 26. Rb1 {[%clk 0:01:20]}  Nb7 {[%clk 0:01:13]} 27. Na3 {[%clk 0:00:51]}  Qa5 {[%clk 0:01:06]} 28. Nd2 {[%clk 0:00:43]}  Nc5 {[%clk 0:01:01]} 29. Qb4 {[%clk 0:00:42]}  Qxb4 {[%clk 0:00:45]} 30. Rxb4 {[%clk 0:00:42]}  Nf6 {[%clk 0:00:45]} 31. Rb6 {[%clk 0:00:34]}  Rd8 {[%clk 0:00:45]} 32. Nb5 {[%clk 0:00:34]}  Bxb5 {[%clk 0:00:44]} 33. cxb5 {[%clk 0:00:33]}  Ne8 {[%clk 0:00:43]} 34. Rc6 {[%clk 0:00:30]}  Kf6 {[%clk 0:00:42]} 35. Nc4 {[%clk 0:00:25]}  Ke7 {[%clk 0:00:41]} 36. Nxe5 {[%clk 0:00:21]}  Rb8 {[%clk 0:00:36]} 37. Nc4 {[%clk 0:00:12]}  Rxb5 {[%clk 0:00:34]} 38. e5 {[%clk 0:00:13]}  Nb7 {[%clk 0:00:30]} 39. exd6+ {[%clk 0:00:11]}  Nbxd6 {[%clk 0:00:31]} 40. Nxd6 {[%clk 0:00:10]}  Nxd6 {[%clk 0:00:32]} 41. g4 {[%clk 0:00:08]}  g5 {[%clk 0:00:32]} 42. Kh2 {[%clk 0:00:07]}  Rb3 {[%clk 0:00:32]} 43. Ra6 {[%clk 0:00:08]}  Rb2 {[%clk 0:00:26]} 44. Kg3 {[%clk 0:00:07]}  Rb3+ {[%clk 0:00:26]} 45. f3 {[%clk 0:00:05]}  Rd3 {[%clk 0:00:24]} 46. Ra5 {[%clk 0:00:04]}  Kf6 {[%clk 0:00:24]} 47. Bf1 {[%clk 0:00:02]}  Ne4+ {[%clk 0:00:23]} 48. Kg2 {[%clk 0:00:02]}  Rd2+ {[%clk 0:00:24]} 49. Kg1 {[%clk 0:00:02]}  Ng3 {[%clk 0:00:19]} 50. Bg2 {[%clk 0:00:02]}  Ne2+ {[%clk 0:00:18]} 51. Kf1 {[%clk 0:00:02]}  Nf4 {[%clk 0:00:19]} 52. Bh1 {[%clk 0:00:01]}  Rd1+ {[%clk 0:00:19]} 53. Kf2 {[%clk 0:00:01]}  Rxh1 {[%clk 0:00:20]} 54. d6 {[%clk 0:00:02]}  Rd1 {[%clk 0:00:19]} 55. Rf5+ {[%clk 0:00:02]}  Ke6 {[%clk 0:00:19]} 56. Rxg5 {[%clk 0:00:01]}  Rxd6 {[%clk 0:00:19]} 57. Kg3 {[%clk 0:00:02]}  Ng6 {[%clk 0:00:19]} 58. Rh5 {[%clk 0:00:02]}  Nf8 {[%clk 0:00:19]} 59. Rh6+ {[%clk 0:00:02]}  f6 {[%clk 0:00:19]} 60. Rh5 {[%clk 0:00:03]}  Kf7 {[%clk 0:00:19]} 61. Ra5 {[%clk 0:00:04]}  Kg6 {[%clk 0:00:19]} 62. Ra7 {[%clk 0:00:04]}  Rd7 {[%clk 0:00:18]} 63. Ra8 {[%clk 0:00:05]}  Ne6 {[%clk 0:00:17]} 64. h4 {[%clk 0:00:05]}  f5 {[%clk 0:00:17]} 65. Ra6 {[%clk 0:00:06]}  f4+ {[%clk 0:00:16]} 66. Kh3 {[%clk 0:00:06]}  Kf6 {[%clk 0:00:17]} 67. h5 {[%clk 0:00:05]}  Rd3 {[%clk 0:00:16]} 68. Kh4 {[%clk 0:00:06]}  Rxf3 {[%clk 0:00:15]} 69. g5+ {[%clk 0:00:06]}  Kf5 {[%clk 0:00:15]} 70. Ra5+ {[%clk 0:00:05]}  Ke4 {[%clk 0:00:16]} 71. g6 {[%clk 0:00:05]}  hxg6 {[%clk 0:00:11]} 72. hxg6 {[%clk 0:00:06]}  Rg3 {[%clk 0:00:11]} 73. Ra4+ {[%clk 0:00:05]}  Nd4 {[%clk 0:00:09]} 74. Ra7 {[%clk 0:00:03]}  Rxg6 {[%clk 0:00:09]} 75. Kh5 {[%clk 0:00:04]}  Re6 {[%clk 0:00:08]} 76. Rf7 {[%clk 0:00:04]}  f3 {[%clk 0:00:08]} 77. Kg4 {[%clk 0:00:04]}  Rg6+ {[%clk 0:00:09]} 78. Kh5 {[%clk 0:00:03]}  Rg3 {[%clk 0:00:09]} 79. Kh4 {[%clk 0:00:03]}  Rg8 {[%clk 0:00:09]} 80. Kh3 {[%clk 0:00:03]}  Ke3 {[%clk 0:00:10]} 81. Kh2 {[%clk 0:00:03]}  f2 {[%clk 0:00:10]} 82. Re7+ {[%clk 0:00:03]}  Kf3 {[%clk 0:00:10]} 83. Rf7+ {[%clk 0:00:04]}  Ke2 {[%clk 0:00:10]} 84. Re7+ {[%clk 0:00:05]}  Kd2 {[%clk 0:00:10]} 85. Rf7 {[%clk 0:00:05]}  Ke1 {[%clk 0:00:10]} 86. Re7+ {[%clk 0:00:05]}  Ne2 {[%clk 0:00:10]} 87. Rd7 {[%clk 0:00:04]}  Rh8+ {[%clk 0:00:10]} 88. Kg2 {[%clk 0:00:04]}  f1=Q# {[%clk 0:00:11]} 0-1


[Site "https://www.chess.com"]

[Event "Titled Tuesday Blitz February 28 Early 2023"]
[White "Levitan, Caleb Levi"]
[Black "Zemlyanskii, Ivan"]
[WhiteFideId "14332620"]
[BlackFideId "24249971"]
[WhiteElo "1963"]
[BlackElo "2233"]
[Result "0-1"]
[Round "03"]
[TimeControl "180+2"]
[Date "2023.02.28"]
[WhiteClock "0:00:08"]
[BlackClock "0:00:11"]

1. e4 {[%clk 0:02:59]}  Nc6 {[%clk 0:02:57]} 2. d4 {[%clk 0:02:51]}  d5 {[%clk 0:02:58]} 3. exd5 {[%clk 0:02:43]}  Qxd5 {[%clk 0:02:58]} 4. Nf3 {[%clk 0:02:43]}  Bg4 {[%clk 0:02:58]} 5. Be2 {[%clk 0:02:43]}  O-O-O {[%clk 0:02:44]} 6. Nc3 {[%clk 0:02:39]}  Qf5 {[%clk 0:02:37]} 7. Be3 {[%clk 0:02:36]}  e5 {[%clk 0:02:14]} 8. d5 {[%clk 0:02:29]}  Nf6 {[%clk 0:02:03]} 9. h3 {[%clk 0:02:18]}  Bxf3 {[%clk 0:01:48]} 10. Bxf3 {[%clk 0:02:18]}  e4 {[%clk 0:01:48]} 11. Bg4 {[%clk 0:02:11]}  Nxg4 {[%clk 0:01:46]} 12. Qxg4 {[%clk 0:02:11]}  Qxg4 {[%clk 0:01:45]} 13. hxg4 {[%clk 0:02:12]}  Ne5 {[%clk 0:01:46]} 14. O-O-O {[%clk 0:02:04]}  Nxg4 {[%clk 0:01:37]} 15. Nxe4 {[%clk 0:02:04]}  Nxe3 {[%clk 0:01:31]} 16. fxe3 {[%clk 0:02:04]}  f6 {[%clk 0:01:32]} 17. Nc3 {[%clk 0:01:22]}  Bc5 {[%clk 0:01:30]} 18. e4 {[%clk 0:01:21]}  Rde8 {[%clk 0:01:29]} 19. Rde1 {[%clk 0:01:19]}  Re5 {[%clk 0:01:17]} 20. Kd2 {[%clk 0:01:14]}  Rg5 {[%clk 0:01:08]} 21. Re2 {[%clk 0:01:11]}  h5 {[%clk 0:01:03]} 22. Kd3 {[%clk 0:00:51]}  a6 {[%clk 0:00:58]} 23. a4 {[%clk 0:00:49]}  Re8 {[%clk 0:00:57]} 24. Rh3 {[%clk 0:00:45]}  Bd6 {[%clk 0:00:55]} 25. Nd1 {[%clk 0:00:41]}  f5 {[%clk 0:00:48]} 26. Rhe3 {[%clk 0:00:25]}  fxe4+ {[%clk 0:00:45]} 27. Kc4 {[%clk 0:00:20]}  b5+ {[%clk 0:00:41]} 28. axb5 {[%clk 0:00:20]}  axb5+ {[%clk 0:00:42]} 29. Kd4 {[%clk 0:00:19]}  c5+ {[%clk 0:00:33]} 30. dxc6 {[%clk 0:00:18]}  Bc5+ {[%clk 0:00:32]} 31. Kc3 {[%clk 0:00:18]}  Bxe3 {[%clk 0:00:32]} 32. Nxe3 {[%clk 0:00:18]}  Re6 {[%clk 0:00:30]} 33. Kd4 {[%clk 0:00:15]}  Rxc6 {[%clk 0:00:27]} 34. Kxe4 {[%clk 0:00:16]}  Re6+ {[%clk 0:00:27]} 35. Kf4 {[%clk 0:00:16]}  Rge5 {[%clk 0:00:26]} 36. g3 {[%clk 0:00:15]}  g5+ {[%clk 0:00:22]} 37. Kf3 {[%clk 0:00:15]}  g4+ {[%clk 0:00:22]} 38. Kf2 {[%clk 0:00:15]}  Re4 {[%clk 0:00:19]} 39. b3 {[%clk 0:00:15]}  h4 {[%clk 0:00:19]} 40. gxh4 {[%clk 0:00:15]}  g3+ {[%clk 0:00:20]} 41. Kf3 {[%clk 0:00:15]}  g2 {[%clk 0:00:20]} 42. Rxg2 {[%clk 0:00:15]}  Rxe3+ {[%clk 0:00:20]} 43. Kf4 {[%clk 0:00:16]}  R3e4+ {[%clk 0:00:17]} 44. Kg5 {[%clk 0:00:15]}  R6e5+ {[%clk 0:00:17]} 45. Kf6 {[%clk 0:00:15]}  Rh5 {[%clk 0:00:17]} 46. Rg8+ {[%clk 0:00:14]}  Kc7 {[%clk 0:00:17]} 47. Rg7+ {[%clk 0:00:14]}  Kc6 {[%clk 0:00:18]} 48. c4 {[%clk 0:00:12]}  bxc4 {[%clk 0:00:10]} 49. bxc4 {[%clk 0:00:13]}  Rxc4 {[%clk 0:00:10]} 50. Rg6 {[%clk 0:00:14]}  Rhxh4 {[%clk 0:00:10]} 51. Kg7+ {[%clk 0:00:14]}  Kd7 {[%clk 0:00:11]} 52. Ra6 {[%clk 0:00:11]}  Ke7 {[%clk 0:00:10]} 53. Ra7+ {[%clk 0:00:10]}  Ke6 {[%clk 0:00:11]} 54. Ra6+ {[%clk 0:00:11]}  Kd7 {[%clk 0:00:11]} 55. Ra7+ {[%clk 0:00:11]}  Rc7 {[%clk 0:00:11]} 56. Ra6 {[%clk 0:00:11]}  Rd4 {[%clk 0:00:11]} 57. Rf6 {[%clk 0:00:08]}  Rd6 {[%clk 0:00:07]} 58. Rf4 {[%clk 0:00:06]}  Kc8+ {[%clk 0:00:07]} 59. Kg8 {[%clk 0:00:05]}  Rd8+ {[%clk 0:00:07]} 60. Rf8 {[%clk 0:00:06]}  Rxf8+ {[%clk 0:00:08]} 61. Kxf8 {[%clk 0:00:07]}  Kd8 {[%clk 0:00:08]} 62. Kg8 {[%clk 0:00:07]}  Ke8 {[%clk 0:00:09]} 63. Kh8 {[%clk 0:00:08]}  Kf7 {[%clk 0:00:10]} 64. Kh7 {[%clk 0:00:08]}  Rc6 {[%clk 0:00:10]} 65. Kh8 {[%clk 0:00:08]}  Rh6# {[%clk 0:00:11]} 0-1


[Site "https://www.chess.com"]

[Event "Titled Tuesday Blitz February 28 Early 2023"]
[White "Rostomyan, Mikayel"]
[Black "Babazada, Khazar"]
[WhiteFideId "13313754"]
[BlackFideId "13413554"]
[WhiteElo "2009"]
[BlackElo "2359"]
[Result "1-0"]
[Round "03"]
[TimeControl "180+2"]
[Date "2023.02.28"]
[WhiteClock "0:00:28"]
[BlackClock "0:00:28"]

1. d4 {[%clk 0:03:00]}  Nf6 {[%clk 0:03:00]} 2. Nf3 {[%clk 0:03:00]}  g6 {[%clk 0:03:00]} 3. b3 {[%clk 0:02:59]}  Bg7 {[%clk 0:03:01]} 4. Bb2 {[%clk 0:02:59]}  O-O {[%clk 0:03:02]} 5. e3 {[%clk 0:02:59]}  d6 {[%clk 0:03:02]} 6. Be2 {[%clk 0:02:59]}  Nbd7 {[%clk 0:03:03]} 7. O-O {[%clk 0:02:59]}  Re8 {[%clk 0:03:03]} 8. c4 {[%clk 0:02:59]}  c5 {[%clk 0:03:04]} 9. Nc3 {[%clk 0:02:58]}  a6 {[%clk 0:03:04]} 10. d5 {[%clk 0:02:57]}  Rb8 {[%clk 0:03:04]} 11. a4 {[%clk 0:02:56]}  b6 {[%clk 0:02:59]} 12. Qc2 {[%clk 0:02:51]}  e6 {[%clk 0:02:57]} 13. dxe6 {[%clk 0:02:49]}  Rxe6 {[%clk 0:02:57]} 14. Rad1 {[%clk 0:02:47]}  h6 {[%clk 0:02:57]} 15. Nd5 {[%clk 0:02:41]}  Bb7 {[%clk 0:02:54]} 16. Nf4 {[%clk 0:02:40]}  Re8 {[%clk 0:02:25]} 17. Rxd6 {[%clk 0:02:39]}  Ne4 {[%clk 0:02:13]} 18. Rd3 {[%clk 0:02:28]}  Bxb2 {[%clk 0:02:10]} 19. Qxb2 {[%clk 0:02:29]}  Qe7 {[%clk 0:02:08]} 20. Nd5 {[%clk 0:02:10]}  Bxd5 {[%clk 0:02:06]} 21. Rxd5 {[%clk 0:02:08]}  Ndf6 {[%clk 0:02:06]} 22. Re5 {[%clk 0:01:55]}  Qc7 {[%clk 0:02:06]} 23. Rd1 {[%clk 0:01:50]}  Ng4 {[%clk 0:02:03]} 24. Rxe8+ {[%clk 0:01:23]}  Rxe8 {[%clk 0:02:04]} 25. Rf1 {[%clk 0:01:24]}  Rd8 {[%clk 0:01:41]} 26. h3 {[%clk 0:01:16]}  Ngxf2 {[%clk 0:01:42]} 27. Rxf2 {[%clk 0:01:13]}  Nxf2 {[%clk 0:01:43]} 28. Kxf2 {[%clk 0:01:13]}  Qd6 {[%clk 0:01:43]} 29. Qe5 {[%clk 0:01:11]}  Qxe5 {[%clk 0:01:29]} 30. Nxe5 {[%clk 0:01:12]}  Rd6 {[%clk 0:01:29]} 31. e4 {[%clk 0:01:09]}  Kg7 {[%clk 0:01:24]} 32. Ke3 {[%clk 0:01:09]}  h5 {[%clk 0:01:15]} 33. Nd3 {[%clk 0:01:09]}  g5 {[%clk 0:01:13]} 34. Bxh5 {[%clk 0:01:07]}  Rd8 {[%clk 0:01:10]} 35. Bg4 {[%clk 0:01:06]}  Kf6 {[%clk 0:01:08]} 36. e5+ {[%clk 0:01:04]}  Ke7 {[%clk 0:01:09]} 37. Nf2 {[%clk 0:00:58]}  f6 {[%clk 0:01:00]} 38. exf6+ {[%clk 0:00:56]}  Kxf6 {[%clk 0:01:01]} 39. Ne4+ {[%clk 0:00:56]}  Kg6 {[%clk 0:01:02]} 40. Nc3 {[%clk 0:00:55]}  Re8+ {[%clk 0:01:01]} 41. Kd3 {[%clk 0:00:54]}  Kf6 {[%clk 0:00:56]} 42. Nd5+ {[%clk 0:00:54]}  Ke5 {[%clk 0:00:57]} 43. Nxb6 {[%clk 0:00:51]}  Kf4 {[%clk 0:00:57]} 44. Nd7 {[%clk 0:00:48]}  Rc8 {[%clk 0:00:53]} 45. Kc3 {[%clk 0:00:39]}  Rc7 {[%clk 0:00:51]} 46. Nb6 {[%clk 0:00:38]}  Kg3 {[%clk 0:00:49]} 47. Bf3 {[%clk 0:00:37]}  a5 {[%clk 0:00:44]} 48. Nd5 {[%clk 0:00:35]}  Rg7 {[%clk 0:00:45]} 49. Nf6 {[%clk 0:00:34]}  Rc7 {[%clk 0:00:42]} 50. Ne4+ {[%clk 0:00:31]}  Kf4 {[%clk 0:00:42]} 51. Nf6 {[%clk 0:00:30]}  Kg3 {[%clk 0:00:39]} 52. Ne4+ {[%clk 0:00:29]}  Kf4 {[%clk 0:00:39]} 53. Nd6 {[%clk 0:00:30]}  Ke3 {[%clk 0:00:28]} 54. Nb7 {[%clk 0:00:28]} 1-0


[Site "https://www.chess.com"]

[Event "Titled Tuesday Blitz February 28 Early 2023"]
[White "Kamsky, Gata"]
[Black "Diaz Perez, Michel Alejandro"]
[WhiteFideId "2000024"]
[BlackFideId "3517179"]
[WhiteElo "2666"]
[BlackElo "2333"]
[Result "1-0"]
[Round "03"]
[TimeControl "180+2"]
[Date "2023.02.28"]
[WhiteClock "0:00:42"]
[BlackClock "0:00:25"]

1. d4 {[%clk 0:03:00]}  Nf6 {[%clk 0:02:58]} 2. Bf4 {[%clk 0:02:54]}  d6 {[%clk 0:02:58]} 3. Nf3 {[%clk 0:02:51]}  g6 {[%clk 0:02:57]} 4. h3 {[%clk 0:02:51]}  Bg7 {[%clk 0:02:58]} 5. c3 {[%clk 0:02:52]}  O-O {[%clk 0:02:56]} 6. Nbd2 {[%clk 0:02:51]}  Nbd7 {[%clk 0:02:40]} 7. e4 {[%clk 0:02:49]}  Re8 {[%clk 0:02:40]} 8. e5 {[%clk 0:02:39]}  Nd5 {[%clk 0:02:38]} 9. Bh2 {[%clk 0:02:39]}  dxe5 {[%clk 0:02:37]} 10. dxe5 {[%clk 0:02:38]}  Nc5 {[%clk 0:02:34]} 11. Be2 {[%clk 0:02:10]}  a5 {[%clk 0:02:32]} 12. a4 {[%clk 0:02:07]}  Bf5 {[%clk 0:02:30]} 13. O-O {[%clk 0:02:06]}  Bd3 {[%clk 0:02:26]} 14. Nd4 {[%clk 0:02:01]}  Nb6 {[%clk 0:02:18]} 15. Re1 {[%clk 0:01:45]}  Bxe2 {[%clk 0:02:13]} 16. Rxe2 {[%clk 0:01:44]}  e6 {[%clk 0:02:09]} 17. N2f3 {[%clk 0:01:33]}  Qd5 {[%clk 0:02:06]} 18. Bf4 {[%clk 0:01:32]}  Rad8 {[%clk 0:01:56]} 19. Qc2 {[%clk 0:01:29]}  h6 {[%clk 0:01:42]} 20. h4 {[%clk 0:01:27]}  c6 {[%clk 0:01:29]} 21. b3 {[%clk 0:01:25]}  Qd7 {[%clk 0:01:25]} 22. Rae1 {[%clk 0:01:22]}  Nd5 {[%clk 0:01:25]} 23. Bc1 {[%clk 0:01:20]}  Qc7 {[%clk 0:01:19]} 24. Nh2 {[%clk 0:01:15]}  h5 {[%clk 0:01:18]} 25. Bg5 {[%clk 0:01:14]}  Rd7 {[%clk 0:01:18]} 26. g4 {[%clk 0:01:12]}  hxg4 {[%clk 0:01:12]} 27. Nxg4 {[%clk 0:01:11]}  Qb6 {[%clk 0:01:00]} 28. Kg2 {[%clk 0:01:09]}  Na6 {[%clk 0:00:59]} 29. Nf3 {[%clk 0:00:48]}  Qc5 {[%clk 0:00:58]} 30. c4 {[%clk 0:00:47]}  Ndb4 {[%clk 0:00:56]} 31. Qe4 {[%clk 0:00:47]}  Rd3 {[%clk 0:00:48]} 32. Re3 {[%clk 0:00:44]}  Rxe3 {[%clk 0:00:36]} 33. Rxe3 {[%clk 0:00:44]}  Qb6 {[%clk 0:00:33]} 34. Nf6+ {[%clk 0:00:44]}  Bxf6 {[%clk 0:00:31]} 35. Bxf6 {[%clk 0:00:45]}  Qc5 {[%clk 0:00:24]} 36. h5 {[%clk 0:00:43]}  Qf8 {[%clk 0:00:24]} 37. hxg6 {[%clk 0:00:43]}  fxg6 {[%clk 0:00:25]} 38. Qxg6+ {[%clk 0:00:42]} 1-0


[Site "https://www.chess.com"]

[Event "Titled Tuesday Blitz February 28 Early 2023"]
[White "Volkov, Maksim"]
[Black "Svane, Frederik"]
[WhiteFideId "54123070"]
[BlackFideId "12923044"]
[WhiteElo "2328"]
[BlackElo "2502"]
[Result "1-0"]
[Round "03"]
[TimeControl "180+2"]
[Date "2023.02.28"]
[WhiteClock "0:01:38"]
[BlackClock "0:01:48"]

1. d4 {[%clk 0:03:00]}  e6 {[%clk 0:02:57]} 2. c4 {[%clk 0:03:01]}  b6 {[%clk 0:02:58]} 3. f3 {[%clk 0:02:59]}  Bb4+ {[%clk 0:02:51]} 4. Bd2 {[%clk 0:02:55]}  Be7 {[%clk 0:02:37]} 5. e4 {[%clk 0:02:54]}  d5 {[%clk 0:02:36]} 6. cxd5 {[%clk 0:02:45]}  exd5 {[%clk 0:02:36]} 7. e5 {[%clk 0:02:41]}  c5 {[%clk 0:02:37]} 8. Ne2 {[%clk 0:02:37]}  cxd4 {[%clk 0:02:34]} 9. Nxd4 {[%clk 0:02:36]}  Bc5 {[%clk 0:02:32]} 10. Be3 {[%clk 0:02:29]}  Ne7 {[%clk 0:02:27]} 11. Bb5+ {[%clk 0:02:25]}  Bd7 {[%clk 0:02:27]} 12. Bd3 {[%clk 0:02:26]}  Nec6 {[%clk 0:02:21]} 13. Nxc6 {[%clk 0:02:18]}  Nxc6 {[%clk 0:02:21]} 14. Bxc5 {[%clk 0:02:17]}  bxc5 {[%clk 0:02:22]} 15. O-O {[%clk 0:02:16]}  c4 {[%clk 0:02:14]} 16. Bc2 {[%clk 0:02:14]}  Qb6+ {[%clk 0:02:14]} 17. Kh1 {[%clk 0:02:13]}  Qxb2 {[%clk 0:02:13]} 18. Nd2 {[%clk 0:02:07]}  O-O {[%clk 0:02:04]} 19. Nxc4 {[%clk 0:02:02]}  dxc4 {[%clk 0:01:59]} 20. Qxd7 {[%clk 0:02:02]}  Nxe5 {[%clk 0:01:55]} 21. Qd2 {[%clk 0:01:39]}  Rad8 {[%clk 0:01:48]} 22. Bxh7+ {[%clk 0:01:38]} 1-0


[Site "https://www.chess.com"]

[Event "Titled Tuesday Blitz February 28 Early 2023"]
[White "Moroni, Luca Jr"]
[Black "Klose, Eli"]
[WhiteFideId "865834"]
[BlackFideId "16242955"]
[WhiteElo "2569"]
[BlackElo "2617"]
[Result "1-0"]
[Round "03"]
[TimeControl "180+2"]
[Date "2023.02.28"]
[WhiteClock "0:00:23"]
[BlackClock "0:00:09"]

1. d4 {[%clk 0:03:00]}  Nf6 {[%clk 0:02:44]} 2. Bf4 {[%clk 0:03:00]}  c5 {[%clk 0:02:43]} 3. e3 {[%clk 0:03:00]}  b6 {[%clk 0:02:42]} 4. h3 {[%clk 0:02:59]}  g6 {[%clk 0:02:42]} 5. Nf3 {[%clk 0:02:59]}  Bg7 {[%clk 0:02:41]} 6. Nbd2 {[%clk 0:03:00]}  O-O {[%clk 0:02:41]} 7. c3 {[%clk 0:03:00]}  d6 {[%clk 0:02:39]} 8. Be2 {[%clk 0:03:01]}  Ba6 {[%clk 0:02:38]} 9. O-O {[%clk 0:03:00]}  Bxe2 {[%clk 0:02:38]} 10. Qxe2 {[%clk 0:03:00]}  Nc6 {[%clk 0:02:34]} 11. e4 {[%clk 0:02:56]}  cxd4 {[%clk 0:02:26]} 12. cxd4 {[%clk 0:02:57]}  e6 {[%clk 0:02:25]} 13. Rac1 {[%clk 0:02:56]}  Rc8 {[%clk 0:02:24]} 14. Nc4 {[%clk 0:02:32]}  Nxe4 {[%clk 0:02:12]} 15. Qxe4 {[%clk 0:02:21]}  d5 {[%clk 0:02:12]} 16. Qd3 {[%clk 0:02:20]}  dxc4 {[%clk 0:02:12]} 17. Rxc4 {[%clk 0:02:21]}  Ne7 {[%clk 0:02:07]} 18. Rfc1 {[%clk 0:02:16]}  Rxc4 {[%clk 0:02:06]} 19. Qxc4 {[%clk 0:02:15]}  Nd5 {[%clk 0:02:07]} 20. Be5 {[%clk 0:02:13]}  Qe7 {[%clk 0:01:56]} 21. a3 {[%clk 0:02:08]}  Rd8 {[%clk 0:01:56]} 22. Qc6 {[%clk 0:02:04]}  h6 {[%clk 0:01:52]} 23. Nd2 {[%clk 0:01:56]}  Bxe5 {[%clk 0:01:19]} 24. dxe5 {[%clk 0:01:57]}  Nf4 {[%clk 0:01:20]} 25. Ne4 {[%clk 0:01:15]}  Ne2+ {[%clk 0:01:18]} 26. Kh2 {[%clk 0:01:16]}  Nxc1 {[%clk 0:01:19]} 27. Qxc1 {[%clk 0:01:16]}  Kg7 {[%clk 0:01:17]} 28. Qe3 {[%clk 0:01:14]}  Rd5 {[%clk 0:01:11]} 29. Nf6 {[%clk 0:01:11]}  Rxe5 {[%clk 0:00:28]} 30. Ne8+ {[%clk 0:01:06]}  Qxe8 {[%clk 0:00:29]} 31. Qxe5+ {[%clk 0:01:06]}  Kg8 {[%clk 0:00:29]} 32. Qc7 {[%clk 0:01:05]}  Qa4 {[%clk 0:00:24]} 33. Qb8+ {[%clk 0:01:00]}  Kg7 {[%clk 0:00:23]} 34. Qe5+ {[%clk 0:01:01]}  Kg8 {[%clk 0:00:23]} 35. g3 {[%clk 0:00:56]}  Qb3 {[%clk 0:00:19]} 36. Kg1 {[%clk 0:00:52]}  a5 {[%clk 0:00:18]} 37. h4 {[%clk 0:00:52]}  h5 {[%clk 0:00:18]} 38. Qd4 {[%clk 0:00:51]}  Qb5 {[%clk 0:00:14]} 39. Qd8+ {[%clk 0:00:49]}  Kg7 {[%clk 0:00:15]} 40. Qd4+ {[%clk 0:00:49]}  e5 {[%clk 0:00:15]} 41. Qc3 {[%clk 0:00:46]}  Qc5 {[%clk 0:00:15]} 42. Qd2 {[%clk 0:00:43]}  Qd4 {[%clk 0:00:13]} 43. Qc2 {[%clk 0:00:44]}  b5 {[%clk 0:00:12]} 44. Qe2 {[%clk 0:00:36]}  b4 {[%clk 0:00:13]} 45. axb4 {[%clk 0:00:37]}  axb4 {[%clk 0:00:14]} 46. Qc2 {[%clk 0:00:36]}  Qd5 {[%clk 0:00:11]} 47. b3 {[%clk 0:00:31]}  Qd4 {[%clk 0:00:12]} 48. Qe2 {[%clk 0:00:29]}  Qc3 {[%clk 0:00:12]} 49. Qd1 {[%clk 0:00:29]}  e4 {[%clk 0:00:12]} 50. Qd5 {[%clk 0:00:22]}  e3 {[%clk 0:00:11]} 51. fxe3 {[%clk 0:00:22]}  Qxe3+ {[%clk 0:00:12]} 52. Kg2 {[%clk 0:00:23]}  f5 {[%clk 0:00:10]} 53. Qb7+ {[%clk 0:00:22]}  Kh6 {[%clk 0:00:10]} 54. Qxb4 {[%clk 0:00:22]}  Qe2+ {[%clk 0:00:10]} 55. Kg1 {[%clk 0:00:23]}  Qd1+ {[%clk 0:00:10]} 56. Kf2 {[%clk 0:00:22]}  Qc2+ {[%clk 0:00:10]} 57. Ke3 {[%clk 0:00:23]}  Qc1+ {[%clk 0:00:10]} 58. Kd3 {[%clk 0:00:22]}  Qd1+ {[%clk 0:00:09]} 59. Qd2+ {[%clk 0:00:22]}  Qxd2+ {[%clk 0:00:08]} 60. Kxd2 {[%clk 0:00:23]}  Kg7 {[%clk 0:00:09]} 61. Ke3 {[%clk 0:00:23]}  Kf6 {[%clk 0:00:09]} 62. Kf4 {[%clk 0:00:23]} 1-0


[Site "https://www.chess.com"]